[Event "World Senior chT-65 2019"]
[Site "Rhodes"]
[Date "2019.04.20"]
[Round "5.31"]
[White "Grahn, Lars"]
[Black "Baumbach, Friedrich"]
[Result "1/2-1/2"]
[ECO "D37"]
[WhiteElo "1985"]
[BlackElo "2089"]
[Annotator "NA"]
[PlyCount "43"]
[EventDate "2019.04.16"]
[EventType "team-tourn"]
[EventCountry "GRE"]
[SourceTitle "playchess.com"]
[Source "ChessBase"]
[SourceQuality "1"]
[WhiteTeam "Sweden"]
[BlackTeam "Germany"]
[WhiteTeamCountry "SWE"]
[BlackTeamCountry "GER"]
[TimeControl "40/5400+30:1800+30"]

1. d4 {[%emt 0:00:00]} d5 {[%emt 0:00:00]} 2. c4 {[%emt 0:00:00]} e6 {[%emt 0:00:00]} 3. Nc3 {[%emt 0:00:00]} Nf6 {[%emt 0:00:00]} 4. Nf3 {[%emt 0:00:04]} Be7 {[%emt 0:00:08]} 5. Bf4 {[%emt 0:00:13]} O-O {[%emt 0:00:13]} 6. e3 {[%emt 0:00:08]} Nbd7 {[%emt 0:00:17]} 7. c5 {[%emt 0:02:03]} c6 {[%emt 0:04:54]} 8. h3 {[%emt 0:04:27]} b6 {[%emt 0:09:48]} 9. b4 {[%emt 0:01:42]} a5 {[%emt 0:06:12]} 10. a3 {[%emt 0:01:23]} Ba6 {[%emt 0:08:17]} 11. Bxa6 {[%emt 0:03:50]} Rxa6 {[%emt 0:00:03]} 12. O-O {[%emt 0:02:00]} Qa8 {[%emt 0:09:11]} 13. Qb1 {[%emt 0:03:55]} b5 {[%emt 0:11:24]} 14. Nd2 {[%emt 0:11:14]} Qa7 {[%emt 0:08:34]} 15. Nb3 {[%emt 0:02:49]} a4 {[%emt 0:02:17]} 16. Nd2 {[%emt 0:03:21]} Re8 {[%emt 0:01:52]} 17. Qd3 {[%emt 0:06:31]} Nf8 {[%emt 0:01:50]} 18. Nf3 {[%emt 0:10:18]} Ng6 {[%emt 0:00:37]} 19. Bh2 {[%emt 0:00:55]} Bd8 {[%emt 0:04:12]} 20. Ne5 {[%emt 0:02:54]} Qe7 {[%emt 0:01:35]} 21. Nxg6 {[%emt 0:02:19]} hxg6 {[%emt 0:00:36]} 22. Bd6 {[%emt 0:03:12]} 1/2-1/2

[Event "World Senior chT-65 2019"]
[Site "Rhodes"]
[Date "2019.04.20"]
[Round "5.32"]
[White "Just, Joachim"]
[Black "Svensson, Soren"]
[Result "1/2-1/2"]
[ECO "D03"]
[WhiteElo "1970"]
[BlackElo "1964"]
[Annotator "NA"]
[PlyCount "83"]
[EventDate "2019.04.16"]
[EventType "team-tourn"]
[EventCountry "GRE"]
[SourceTitle "playchess.com"]
[Source "ChessBase"]
[SourceQuality "1"]
[WhiteTeam "Germany"]
[BlackTeam "Sweden"]
[WhiteTeamCountry "GER"]
[BlackTeamCountry "SWE"]
[TimeControl "40/5400+30:1800+30"]

1. d4 {[%emt 0:00:00]} d5 {[%emt 0:00:00]} 2. Nf3 {[%emt 0:00:00]} Nf6 {[%emt 0:00:28]} 3. Bg5 {[%emt 0:00:28]} Ne4 {[%emt 0:01:15]} 4. Bf4 {[%emt 0:00:17]} c5 {[%emt 0:00:23]} 5. c3 {[%emt 0:00:26]} Nc6 {[%emt 0:02:11]} 6. e3 {[%emt 0:00:20]} Bg4 {[%emt 0:04:42]} 7. Be2 {[%emt 0:00:46]} e6 {[%emt 0:00:52]} 8. h3 {[%emt 0:00:41]} Bh5 {[%emt 0:00:42]} 9. Nbd2 {[%emt 0:00:58]} Nxd2 {[%emt 0:01:44]} 10. Qxd2 {[%emt 0:00:35]} Bd6 {[%emt 0:07:48]} 11. Bxd6 {[%emt 0:05:13]} Qxd6 {[%emt 0:00:15]} 12. Bb5 {[%emt 0:00:34]} O-O {[%emt 0:01:29]} 13. Bxc6 {[%emt 0:00:36]} Qxc6 {[%emt 0:02:41]} 14. g4 {[%emt 0:07:54]} Bg6 {[%emt 0:05:38]} 15. Ne5 {[%emt 0:00:11]} Qc7 {[%emt 0:00:14]} 16. O-O {[%emt 0:01:18]} c4 {[%emt 0:03:59]} 17. f3 {[%emt 0:01:18]} Qe7 {[%emt 0:02:17]} 18. Qf2 {[%emt 0:05:03]} Qe8 {[%emt 0:03:38]} 19. Nxg6 {[%emt 0:07:59]} hxg6 {[%emt 0:00:40]} 20. e4 {[%emt 0:01:09]} Qd7 {[%emt 0:06:05]} 21. Rfe1 {[%emt 0:02:31]} b5 {[%emt 0:08:27]} 22. Re2 {[%emt 0:02:04]} a5 {[%emt 0:02:02]} 23. Rae1 {[%emt 0:00:41]} Rfe8 {[%emt 0:08:34]} 24. Qh4 {[%emt 0:03:27]} b4 {[%emt 0:01:52]} 25. Qg5 {[%emt 0:00:34]} dxe4 {[%emt 0:04:58]} 26. Rxe4 {[%emt 0:01:48]} Qa4 {[%emt 0:05:09]} 27. d5 {[%emt 0:08:05]} bxc3 {[%emt 0:07:02]} 28. bxc3 {[%emt 0:02:48]} Qb5 {[%emt 0:01:30]} 29. a4 {[%emt 0:02:47]} Qc5+ {[%emt 0:09:18]} 30. Kg2 {[%emt 0:01:48]} Red8 {[%emt 0:01:29]} 31. Qf4 {[%emt 0:04:53]} exd5 {[%emt 0:04:01]} 32. Re7 {[%emt 0:00:38]} Rf8 {[%emt 0:00:16]} 33. Rc7 {[%emt 0:00:30]} Qb6 {[%emt 0:01:23]} 34. Ree7 {[%emt 0:00:34]} Qf6 {[%emt 0:02:17]} 35. Qe3 {[%emt 0:03:07]} Rab8 {[%emt 0:00:39]} 36. Rb7 {[%emt 0:08:17]} g5 {[%emt 0:00:55]} 37. Kg3 {[%emt 0:03:58]} Rxb7 {[%emt 0:00:33]} 38. Rxb7 {[%emt 0:00:09]} Qc6 {[%emt 0:00:39]} 39. Rb5 {[%emt 0:02:20]} f6 {[%emt 0:00:42]} 40. Qd4 {[%emt 0:00:00]} Qc7+ {[%emt 0:00:00]} 41. Kg2 {[%emt 0:03:07]} Rd8 {[%emt 0:04:40]} 42. Rxd5 {[%emt 0:00:30]} 1/2-1/2

[Event "World Senior chT-65 2019"]
[Site "Rhodes"]
[Date "2019.04.20"]
[Round "5.33"]
[White "Vucenovic, Dragomir"]
[Black "Thornton, John D"]
[Result "1-0"]
[ECO "A90"]
[WhiteElo "2168"]
[BlackElo "2061"]
[Annotator "NA"]
[PlyCount "87"]
[EventDate "2019.04.16"]
[EventType "team-tourn"]
[EventCountry "GRE"]
[SourceTitle "playchess.com"]
[Source "ChessBase"]
[SourceQuality "1"]
[WhiteTeam "Switzerland"]
[BlackTeam "Wales"]
[WhiteTeamCountry "SUI"]
[BlackTeamCountry "WLS"]
[TimeControl "40/5400+30:1800+30"]

1. Nf3 {[%emt 0:00:00]} f5 {[%emt 0:00:00]} 2. g3 {[%emt 0:00:00]} Nf6 {[%emt 0:00:01]} 3. Bg2 {[%emt 0:00:02]} e6 {[%emt 0:00:08]} 4. d4 {[%emt 0:00:28]} d5 {[%emt 0:00:11]} 5. O-O {[%emt 0:00:20]} Bd6 {[%emt 0:00:08]} 6. b3 {[%emt 0:00:28]} Qe7 {[%emt 0:00:13]} 7. Bb2 {[%emt 0:00:25]} O-O {[%emt 0:00:13]} 8. c4 {[%emt 0:00:20]} c6 {[%emt 0:00:08]} 9. Qc1 {[%emt 0:02:56]} Nbd7 {[%emt 0:00:32]} 10. Ba3 {[%emt 0:02:27]} dxc4 {[%emt 0:01:49]} 11. Bxd6 {[%emt 0:01:09]} Qxd6 {[%emt 0:00:14]} 12. bxc4 {[%emt 0:02:34]} e5 {[%emt 0:03:00]} 13. e3 {[%emt 0:08:15]} e4 {[%emt 0:05:01]} 14. Nfd2 {[%emt 0:00:33]} c5 {[%emt 0:03:31]} 15. Qa3 {[%emt 0:02:38]} Qb6 {[%emt 0:13:18]} 16. Nc3 {[%emt 0:23:52]} cxd4 {[%emt 0:04:14]} 17. Rab1 {[%emt 0:00:57]} Qc5 {[%emt 0:02:46]} 18. Qxc5 {[%emt 0:00:20]} Nxc5 {[%emt 0:00:01]} 19. exd4 {[%emt 0:00:19]} Ne6 {[%emt 0:04:24]} 20. Nb3 {[%emt 0:00:50]} b6 {[%emt 0:07:45]} 21. f3 {[%emt 0:10:39]} Ba6 {[%emt 0:05:10]} 22. fxe4 {[%emt 0:05:25]} fxe4 {[%emt 0:22:16]} 23. Nxe4 {[%emt 0:01:01]} Nxe4 {[%emt 0:05:36]} 24. Bxe4 {[%emt 0:00:49]} Bxc4 {[%emt 0:00:22]} 25. Rfc1 {[%emt 0:01:34]} Bxb3 {[%emt 0:09:02]} 26. Bxa8 {[%emt 0:00:48]} Bxa2 {[%emt 0:03:16]} 27. Rb2 {[%emt 0:01:24]} Rxa8 {[%emt 0:01:42]} 28. Rxa2 {[%emt 0:02:41]} Nxd4 {[%emt 0:00:13]} 29. Rc7 {[%emt 0:01:02]} b5 {[%emt 0:06:12]} 30. Raxa7 {[%emt 0:03:30]} Rxa7 {[%emt 0:00:19]} 31. Rxa7 {[%emt 0:00:18]} b4 {[%emt 0:01:34]} 32. Rd7 {[%emt 0:00:55]} Nc6 {[%emt 0:01:29]} 33. Rb7 {[%emt 0:00:20]} h6 {[%emt 0:00:45]} 34. Rb6 {[%emt 0:00:20]} Ne5 {[%emt 0:00:22]} 35. Rxb4 {[%emt 0:00:28]} Kf7 {[%emt 0:00:19]} 36. Rb6 {[%emt 0:00:29]} Ng4 {[%emt 0:00:27]} 37. h3 {[%emt 0:01:41]} Nf6 {[%emt 0:00:29]} 38. Kg2 {[%emt 0:00:31]} h5 {[%emt 0:00:17]} 39. h4 {[%emt 0:03:09]} Nd5 {[%emt 0:00:58]} 40. Ra6 {[%emt 0:00:00]} Nf6 {[%emt 0:00:00]} 41. Kf3 {[%emt 0:01:23]} g6 {[%emt 0:14:29]} 42. Ra7+ {[%emt 0:02:01]} Ke6 {[%emt 0:00:47]} 43. Kf4 {[%emt 0:00:39]} Ng4 {[%emt 0:01:10]} 44. Ke4 {[%emt 0:06:04] Kd5+ [%emt 00:00:02]} 1-0

[Event "World Senior chT-65 2019"]
[Site "Rhodes"]
[Date "2019.04.20"]
[Round "5.34"]
[White "Waterfield, John W"]
[Black "Bhend, Edwin"]
[Result "1/2-1/2"]
[ECO "B00"]
[WhiteElo "1928"]
[BlackElo "2120"]
[Annotator "NA"]
[PlyCount "25"]
[EventDate "2019.04.16"]
[EventType "team-tourn"]
[EventCountry "GRE"]
[SourceTitle "playchess.com"]
[Source "ChessBase"]
[SourceQuality "1"]
[WhiteTeam "Wales"]
[BlackTeam "Switzerland"]
[WhiteTeamCountry "WLS"]
[BlackTeamCountry "SUI"]
[TimeControl "40/5400+30:1800+30"]

1. e4 {[%emt 0:00:00]} b6 {[%emt 0:00:00]} 2. d4 {[%emt 0:00:00]} Bb7 {[%emt 0:00:00]} 3. Bd3 {[%emt 0:00:05]} e6 {[%emt 0:00:00]} 4. Nf3 {[%emt 0:01:10]} d6 {[%emt 0:00:33]} 5. O-O {[%emt 0:00:46]} Ne7 {[%emt 0:01:41]} 6. Be3 {[%emt 0:09:59]} Ng6 {[%emt 0:00:34]} 7. Ng5 {[%emt 0:07:54]} Be7 {[%emt 0:18:24]} 8. f4 {[%emt 0:01:29]} Nd7 {[%emt 0:04:24]} 9. Nd2 {[%emt 0:15:07]} a6 {[%emt 0:09:44]} 10. Qh5 {[%emt 0:03:03]} Nf6 {[%emt 0:04:07]} 11. Qe2 {[%emt 0:00:13]} Ng8 {[%emt 0:05:35]} 12. Qh5 {[%emt 0:08:07]} Nf6 {[%emt 0:00:50]} 13. Qe2 {[%emt 0:00:05]} 1/2-1/2

[Event "World Senior chT-65 2019"]
[Site "Rhodes"]
[Date "2019.04.20"]
[Round "5.35"]
[White "Kradolfer, Georg"]
[Black "Bevan, Peter M"]
[Result "1/2-1/2"]
[ECO "A18"]
[WhiteElo "2048"]
[BlackElo "1920"]
[Annotator "NA"]
[PlyCount "42"]
[EventDate "2019.04.16"]
[EventType "team-tourn"]
[EventCountry "GRE"]
[SourceTitle "playchess.com"]
[Source "ChessBase"]
[SourceQuality "1"]
[WhiteTeam "Switzerland"]
[BlackTeam "Wales"]
[WhiteTeamCountry "SUI"]
[BlackTeamCountry "WLS"]
[TimeControl "40/5400+30:1800+30"]

1. c4 {[%emt 0:00:00]} Nf6 {[%emt 0:00:00]} 2. Nc3 {[%emt 0:00:12]} e6 {[%emt 0:00:00]} 3. e4 {[%emt 0:03:40]} d5 {[%emt 0:00:01]} 4. e5 {[%emt 0:00:39]} d4 {[%emt 0:00:18]} 5. exf6 {[%emt 0:00:55]} dxc3 {[%emt 0:00:04]} 6. bxc3 {[%emt 0:01:20]} Qxf6 {[%emt 0:00:10]} 7. d4 {[%emt 0:01:45]} b6 {[%emt 0:00:15]} 8. Nf3 {[%emt 0:10:40]} Bb7 {[%emt 0:00:25]} 9. Be2 {[%emt 0:00:47]} Bd6 {[%emt 0:00:53]} 10. Bg5 {[%emt 0:12:26]} Qf5 {[%emt 0:02:10]} 11. Qd2 {[%emt 0:05:34]} h6 {[%emt 0:04:26]} 12. Be3 {[%emt 0:06:36]} Nd7 {[%emt 0:03:47]} 13. O-O {[%emt 0:02:14]} Nf6 {[%emt 0:03:34]} 14. Nh4 {[%emt 0:09:46]} Qa5 {[%emt 0:06:19]} 15. Qb2 {[%emt 0:07:09]} g5 {[%emt 0:06:01]} 16. Nf3 {[%emt 0:00:54]} g4 {[%emt 0:00:48]} 17. Nd2 {[%emt 0:02:21]} Qh5 {[%emt 0:00:17]} 18. Qb5+ {[%emt 0:00:28]} Qxb5 {[%emt 0:01:19]} 19. cxb5 {[%emt 0:00:02]} h5 {[%emt 0:01:00]} 20. c4 {[%emt 0:01:52]} Ne4 {[%emt 0:04:40]} 21. Nxe4 {[%emt 0:03:56]} Bxe4 {[%emt 0:01:18]} 1/2-1/2

[Event "World Senior chT-65 2019"]
[Site "Rhodes"]
[Date "2019.04.20"]
[Round "5.36"]
[White "Harle, Bill"]
[Black "Illi, Hans-Joerg"]
[Result "1/2-1/2"]
[ECO "A46"]
[WhiteElo "1734"]
[BlackElo "2002"]
[Annotator "NA"]
[PlyCount "63"]
[EventDate "2019.04.16"]
[EventType "team-tourn"]
[EventCountry "GRE"]
[SourceTitle "playchess.com"]
[Source "ChessBase"]
[SourceQuality "1"]
[WhiteTeam "Wales"]
[BlackTeam "Switzerland"]
[WhiteTeamCountry "WLS"]
[BlackTeamCountry "SUI"]
[TimeControl "40/5400+30:1800+30"]

1. d4 {[%emt 0:00:00]} Nf6 {[%emt 0:00:07]} 2. Nf3 {[%emt 0:00:00]} e6 {[%emt 0:00:19]} 3. g3 {[%emt 0:01:05]} b5 {[%emt 0:01:26]} 4. Bg2 {[%emt 0:00:55]} Bb7 {[%emt 0:00:19]} 5. O-O {[%emt 0:01:45]} Be7 {[%emt 0:01:05]} 6. Nbd2 {[%emt 0:02:19]} O-O {[%emt 0:00:45]} 7. b3 {[%emt 0:00:53]} c5 {[%emt 0:05:18]} 8. Bb2 {[%emt 0:00:29]} d5 {[%emt 0:02:13]} 9. c4 {[%emt 0:01:41]} bxc4 {[%emt 0:09:28]} 10. bxc4 {[%emt 0:00:19]} Nbd7 {[%emt 0:01:01]} 11. cxd5 {[%emt 0:05:55]} Bxd5 {[%emt 0:01:44]} 12. Re1 {[%emt 0:02:32]} Rb8 {[%emt 0:03:47]} 13. Bc3 {[%emt 0:08:02]} Ne4 {[%emt 0:01:23]} 14. Nxe4 {[%emt 0:00:40]} Bxe4 {[%emt 0:01:18]} 15. Nd2 {[%emt 0:00:00]} Bxg2 {[%emt 0:01:17]} 16. Kxg2 {[%emt 0:00:03]} Nf6 {[%emt 0:24:45]} 17. dxc5 {[%emt 0:05:40]} Bxc5 {[%emt 0:02:34]} 18. Bxf6 {[%emt 0:01:02]} Qxf6 {[%emt 0:03:51]} 19. Ne4 {[%emt 0:00:19]} Qe7 {[%emt 0:02:08]} 20. Nxc5 {[%emt 0:01:42]} Qxc5 {[%emt 0:00:13]} 21. Qc1 {[%emt 0:02:24]} Qa5 {[%emt 0:03:11]} 22. e3 {[%emt 0:02:16]} Rfc8 {[%emt 0:02:44]} 23. Qd1 {[%emt 0:01:02]} Rd8 {[%emt 0:00:42]} 24. Qf3 {[%emt 0:02:42]} g6 {[%emt 0:03:47]} 25. Qf4 {[%emt 0:07:12]} Rb2 {[%emt 0:06:39]} 26. Red1 {[%emt 0:06:36]} Rdd2 {[%emt 0:06:07]} 27. Rxd2 {[%emt 0:05:46]} Qxd2 {[%emt 0:01:04]} 28. Qf6 {[%emt 0:01:53]} h5 {[%emt 0:00:58]} 29. a4 {[%emt 0:01:10]} Qd5+ {[%emt 0:03:04]} 30. Kg1 {[%emt 0:02:14]} Rd2 {[%emt 0:02:12]} 31. Qf4 {[%emt 0:03:18]} Kg7 {[%emt 0:06:57]} 32. Qb4 {[%emt 0:02:20]} 1/2-1/2

[Event "World Senior chT-65 2019"]
[Site "Rhodes"]
[Date "2019.04.20"]
[Round "5.37"]
[White "Rooze, Jan"]
[Black "Rantanen, Veikko"]
[Result "1-0"]
[ECO "B12"]
[WhiteElo "2261"]
[BlackElo "1971"]
[Annotator "NA"]
[PlyCount "109"]
[EventDate "2019.04.16"]
[EventType "team-tourn"]
[EventCountry "GRE"]
[SourceTitle "playchess.com"]
[Source "ChessBase"]
[SourceQuality "1"]
[WhiteTeam "Belgium"]
[BlackTeam "Finland"]
[WhiteTeamCountry "BEL"]
[BlackTeamCountry "FIN"]
[TimeControl "40/5400+30:1800+30"]

1. e4 {[%emt 0:00:00]} c6 {[%emt 0:00:00]} 2. d4 {[%emt 0:00:00]} d5 {[%emt 0:00:00]} 3. e5 {[%emt 0:00:00]} Bf5 {[%emt 0:00:12]} 4. Nd2 {[%emt 0:00:01]} e6 {[%emt 0:01:03]} 5. Nb3 {[%emt 0:00:08]} a6 {[%emt 0:01:26]} 6. Nf3 {[%emt 0:01:23]} Nd7 {[%emt 0:04:18]} 7. Be3 {[%emt 0:07:10]} Qc7 {[%emt 0:01:45]} 8. Rc1 {[%emt 0:09:40]} c5 {[%emt 0:05:26]} 9. c4 {[%emt 0:02:29]} Be4 {[%emt 0:06:07]} 10. cxd5 {[%emt 0:04:33]} Bxd5 {[%emt 0:00:30]} 11. Nxc5 {[%emt 0:03:56]} Bxc5 {[%emt 0:01:22]} 12. dxc5 {[%emt 0:02:48]} Ne7 {[%emt 0:02:55]} 13. Bd3 {[%emt 0:14:38]} Nxe5 {[%emt 0:02:41]} 14. Nxe5 {[%emt 0:00:36]} Qxe5 {[%emt 0:00:26]} 15. O-O {[%emt 0:05:03]} O-O {[%emt 0:03:08]} 16. Qc2 {[%emt 0:03:32]} g6 {[%emt 0:03:33]} 17. Rfe1 {[%emt 0:00:20]} Rfc8 {[%emt 0:04:03]} 18. Qd2 {[%emt 0:03:14]} Nc6 {[%emt 0:09:54]} 19. Bb1 {[%emt 0:06:21]} Qh5 {[%emt 0:01:40]} 20. Bf4 {[%emt 0:02:51]} Qg4 {[%emt 0:03:41]} 21. Bg3 {[%emt 0:01:59]} Rd8 {[%emt 0:13:18]} 22. Qh6 {[%emt 0:04:50]} Qd4 {[%emt 0:03:15]} 23. b3 {[%emt 0:02:30]} Rac8 {[%emt 0:01:57]} 24. h3 {[%emt 0:02:11]} Qg7 {[%emt 0:00:39]} 25. Qg5 {[%emt 0:01:45]} Rd7 {[%emt 0:03:29]} 26. Red1 {[%emt 0:01:16]} Rcd8 {[%emt 0:02:31]} 27. Qe3 {[%emt 0:00:51]} h6 {[%emt 0:01:59]} 28. Rd2 {[%emt 0:01:31]} Kh7 {[%emt 0:00:21]} 29. Rcd1 {[%emt 0:00:09]} Rc8 {[%emt 0:00:49]} 30. Be4 {[%emt 0:01:30]} Re7 {[%emt 0:02:58]} 31. Bd6 {[%emt 0:04:04]} Ree8 {[%emt 0:00:15]} 32. Bb1 {[%emt 0:00:39]} Qf6 {[%emt 0:01:50]} 33. Bf4 {[%emt 0:01:21]} Qg7 {[%emt 0:00:06]} 34. a3 {[%emt 0:00:32]} Na5 {[%emt 0:04:58]} 35. Bc2 {[%emt 0:02:04]} Nc6 {[%emt 0:00:52]} 36. h4 {[%emt 0:00:59]} h5 {[%emt 0:00:54]} 37. b4 {[%emt 0:00:32]} Qf6 {[%emt 0:00:41]} 38. Qg3 {[%emt 0:01:27]} Rg8 {[%emt 0:03:07]} 39. Kh2 {[%emt 0:02:54]} Rge8 {[%emt 0:00:49]} 40. Bg5 {[%emt 0:00:00]} Qe5 {[%emt 0:00:00]} 41. f4 {[%emt 0:02:53]} Qg7 {[%emt 0:02:33]} 42. f5 {[%emt 0:01:14]} gxf5 {[%emt 0:03:18]} 43. Rxd5 {[%emt 0:03:25]} exd5 {[%emt 0:02:23]} 44. Bxf5+ {[%emt 0:00:08]} Kg8 {[%emt 0:00:30]} 45. Bxc8 {[%emt 0:00:25]} Rxc8 {[%emt 0:00:08]} 46. Rxd5 {[%emt 0:00:10]} Nd4 {[%emt 0:04:49]} 47. Rd7 {[%emt 0:07:23]} b6 {[%emt 0:01:33]} 48. cxb6 {[%emt 0:01:15]} Nf5 {[%emt 0:01:06]} 49. b7 {[%emt 0:00:54]} Rf8 {[%emt 0:00:52]} 50. b8=Q {[%emt 0:00:33]} Nxg3 {[%emt 0:06:40]} 51. Qxg3 {[%emt 0:01:11]} Rc8 {[%emt 0:02:18]} 52. Qf4 {[%emt 0:00:36]} Rc3 {[%emt 0:02:59]} 53. Rd8+ {[%emt 0:02:23]} Kh7 {[%emt 0:00:38]} 54. Qf5+ {[%emt 0:00:25]} Qg6 {[%emt 0:00:20]} 55. Qe5 {[%emt 0:00:47]} 1-0

[Event "World Senior chT-65 2019"]
[Site "Rhodes"]
[Date "2019.04.20"]
[Round "5.38"]
[White "Ranki, Martti"]
[Black "Van de Wynkele, Herman"]
[Result "1/2-1/2"]
[ECO "A31"]
[WhiteElo "1940"]
[BlackElo "2129"]
[Annotator "NA"]
[PlyCount "74"]
[EventDate "2019.04.16"]
[EventType "team-tourn"]
[EventCountry "GRE"]
[SourceTitle "playchess.com"]
[Source "ChessBase"]
[SourceQuality "1"]
[WhiteTeam "Finland"]
[BlackTeam "Belgium"]
[WhiteTeamCountry "FIN"]
[BlackTeamCountry "BEL"]
[TimeControl "40/5400+30:1800+30"]

1. d4 {[%emt 0:00:00]} Nf6 {[%emt 0:00:00]} 2. c4 {[%emt 0:00:00]} c5 {[%emt 0:00:00]} 3. Nf3 {[%emt 0:00:27]} cxd4 {[%emt 0:00:08]} 4. Nxd4 {[%emt 0:00:23]} e5 {[%emt 0:00:12]} 5. Nc2 {[%emt 0:03:56]} d5 {[%emt 0:07:34]} 6. cxd5 {[%emt 0:04:07]} Bc5 {[%emt 0:00:53]} 7. e3 {[%emt 0:04:18]} Bf5 {[%emt 0:02:11]} 8. Bb5+ {[%emt 0:04:25]} Nbd7 {[%emt 0:00:21]} 9. O-O {[%emt 0:02:00]} O-O {[%emt 0:00:07]} 10. Nd2 {[%emt 0:08:57]} Rc8 {[%emt 0:02:14]} 11. Ne1 {[%emt 0:03:25]} e4 {[%emt 0:01:08]} 12. Nb3 {[%emt 0:06:52]} Bd6 {[%emt 0:11:08]} 13. Nd4 {[%emt 0:02:13]} Bxh2+ {[%emt 0:02:47]} 14. Kxh2 {[%emt 0:01:03]} Ng4+ {[%emt 0:00:07]} 15. Kg1 {[%emt 0:00:52]} Qh4 {[%emt 0:00:22]} 16. Nef3 {[%emt 0:01:01]} exf3 {[%emt 0:00:36]} 17. Nxf3 {[%emt 0:00:10]} Qh5 {[%emt 0:00:58]} 18. Bxd7 {[%emt 0:01:10]} Bxd7 {[%emt 0:00:28]} 19. e4 {[%emt 0:00:50]} Rc4 {[%emt 0:18:43]} 20. Re1 {[%emt 0:04:23]} Re8 {[%emt 0:02:00]} 21. Bf4 {[%emt 0:02:14]} Rcxe4 {[%emt 0:06:07]} 22. Rxe4 {[%emt 0:00:12]} Rxe4 {[%emt 0:00:05]} 23. Bg3 {[%emt 0:00:12]} Nf6 {[%emt 0:04:09]} 24. d6 {[%emt 0:04:19]} Qf5 {[%emt 0:01:30]} 25. Qd2 {[%emt 0:11:37]} Nh5 {[%emt 0:06:06]} 26. Bh2 {[%emt 0:05:41]} Rg4 {[%emt 0:02:24]} 27. Ne5 {[%emt 0:01:43]} Re4 {[%emt 0:07:56]} 28. Nxd7 {[%emt 0:01:47]} Qxd7 {[%emt 0:00:01]} 29. Re1 {[%emt 0:00:31]} Rxe1+ {[%emt 0:03:10]} 30. Qxe1 {[%emt 0:00:01]} Nf6 {[%emt 0:01:26]} 31. Qc3 {[%emt 0:01:40]} Qc6 {[%emt 0:07:20]} 32. Qe3 {[%emt 0:03:56]} Nd5 {[%emt 0:01:15]} 33. Qd2 {[%emt 0:00:54]} f6 {[%emt 0:00:30]} 34. Bg3 {[%emt 0:00:14]} Kf7 {[%emt 0:00:21]} 35. Qe2 {[%emt 0:00:40]} g5 {[%emt 0:02:30]} 36. Qh5+ {[%emt 0:00:30]} Kg7 {[%emt 0:00:11]} 37. Qg4 {[%emt 0:03:42]} Nb6 {[%emt 0:00:43]} 1/2-1/2

[Event "World Senior chT-65 2019"]
[Site "Rhodes"]
[Date "2019.04.20"]
[Round "5.39"]
[White "Van Herck, Marcel"]
[Black "Alkkiomaki, Jyrki"]
[Result "1-0"]
[ECO "C84"]
[WhiteElo "2066"]
[BlackElo "1908"]
[Annotator "NA"]
[PlyCount "72"]
[EventDate "2019.04.16"]
[EventType "team-tourn"]
[EventCountry "GRE"]
[SourceTitle "playchess.com"]
[Source "ChessBase"]
[SourceQuality "1"]
[WhiteTeam "Belgium"]
[BlackTeam "Finland"]
[WhiteTeamCountry "BEL"]
[BlackTeamCountry "FIN"]
[TimeControl "40/5400+30:1800+30"]

1. e4 {[%emt 0:00:11]} e5 {[%emt 0:00:00]} 2. Nf3 {[%emt 0:00:28]} Nc6 {[%emt 0:00:00]} 3. Bb5 {[%emt 0:00:11]} a6 {[%emt 0:00:00]} 4. Ba4 {[%emt 0:00:06]} Nf6 {[%emt 0:00:06]} 5. O-O {[%emt 0:00:12]} Be7 {[%emt 0:00:13]} 6. d4 {[%emt 0:10:49]} Nxd4 {[%emt 0:12:04]} 7. Nxd4 {[%emt 0:08:47]} exd4 {[%emt 0:00:06]} 8. e5 {[%emt 0:00:07]} Nd5 {[%emt 0:00:05]} 9. Qg4 {[%emt 0:20:39]} Bf8 {[%emt 0:19:41]} 10. Qxd4 {[%emt 0:00:43]} c6 {[%emt 0:00:49]} 11. Bb3 {[%emt 0:10:23]} Nc7 {[%emt 0:02:45]} 12. Nc3 {[%emt 0:04:42]} Ne6 {[%emt 0:02:34]} 13. Bxe6 {[%emt 0:01:04]} dxe6 {[%emt 0:00:38]} 14. Qg4 {[%emt 0:00:29]} Qc7 {[%emt 0:00:48]} 15. Bf4 {[%emt 0:03:06]} Bd7 {[%emt 0:00:26]} 16. Ne4 {[%emt 0:02:39]} O-O-O {[%emt 0:05:35]} 17. Rfd1 {[%emt 0:00:55]} h6 {[%emt 0:10:09]} 18. h4 {[%emt 0:03:19]} g6 {[%emt 0:07:30]} 19. Rd3 {[%emt 0:04:53]} f5 {[%emt 0:02:45]} 20. exf6 {[%emt 0:00:15]} e5 {[%emt 0:00:06]} 21. Rxd7 {[%emt 0:01:41]} Rxd7 {[%emt 0:00:16]} 22. Bg3 {[%emt 0:06:19]} g5 {[%emt 0:03:44]} 23. hxg5 {[%emt 0:00:51]} hxg5 {[%emt 0:00:06]} 24. Qxg5 {[%emt 0:02:33]} Rdh7 {[%emt 0:00:31]} 25. Qf5+ {[%emt 0:00:57]} Qd7 {[%emt 0:01:01]} 26. Qxd7+ {[%emt 0:00:11]} Kxd7 {[%emt 0:00:20]} 27. Rd1+ {[%emt 0:00:04]} Kc8 {[%emt 0:00:21]} 28. Kf1 {[%emt 0:00:09]} Rh1+ {[%emt 0:01:46]} 29. Ke2 {[%emt 0:00:04]} Rxd1 {[%emt 0:01:30]} 30. Kxd1 {[%emt 0:00:03]} Rh1+ {[%emt 0:00:36]} 31. Ke2 {[%emt 0:00:46]} Rg1 {[%emt 0:00:46]} 32. Kf3 {[%emt 0:00:25]} Rc1 {[%emt 0:00:28]} 33. Bxe5 {[%emt 0:00:19]} Rxc2 {[%emt 0:00:09]} 34. g4 {[%emt 0:01:14]} Kd7 {[%emt 0:00:09]} 35. g5 {[%emt 0:01:04]} Ke6 {[%emt 0:00:17]} 36. g6 {[%emt 0:00:50]} Kd5 {[%emt 0:01:27]} 1-0